bitfinex-derivatives/quotes_BTCF0:USTF0_20240815
["timestamp","ask_amount","ask_price","bid_price","bid_amount"]
[1723723184730,0.63124721,58776.0,58775.0,0.17176526]
[1723723185437,0.63124721,58776.0,58775.0,0.08670026]
[1723723185744,0.83631121,58776.0,58775.0,0.08670026]
[1723723185946,0.83631121,58776.0,58775.0,0.002]
[1723723185947,0.90438191,58776.0,58775.0,0.002]
[1723723186145,1.01008191,58776.0,58775.0,0.002]
[1723723186447,0.34026,58775.0,58774.0,0.001]
[1723723186636,0.57813031,58775.0,58774.0,0.001]
[1723723188154,0.255219,58770.0,58769.0,0.00025521]
[1723723189439,0.255219,58770.0,58767.0,0.085077]
[1723723189440,0.170152,58768.0,58767.0,0.085077]
[1723723189748,0.1977295,58768.0,58767.0,0.085077]
[1723723190640,0.17016,58766.0,58765.0,0.085079]
[1723723190841,0.1977375,58766.0,58765.0,0.085079]
[1723723191043,0.29954257,58766.0,58765.0,0.085079]
[1723723191547,0.29954271,58766.0,58765.0,0.085079]
[1723723192852,0.30454271,58766.0,58765.0,0.085079]
[1723723193242,0.20673764,58766.0,58765.0,0.085079]
[1723723193452,0.20673764,58766.0,58765.0,0.16978939]
[1723723195252,0.20673764,58766.0,58765.0,0.085079]
[1723723196558,0.17916,58766.0,58765.0,0.16979406]
[1723723197854,0.17916,58766.0,58765.0,0.085079]
[1723723198155,0.17916,58766.0,58765.0,0.16979405]
[1723723198357,0.17916,58766.0,58765.0,0.085079]
[1723723198558,0.17916,58766.0,58765.0,0.08471506]
[1723723198559,0.26424,58766.0,58765.0,0.08471506]
[1723723199145,0.27424,58766.0,58765.0,0.08471506]
[1723723200154,0.35932,58766.0,58765.0,0.08471506]
[1723723200357,0.085091,58757.0,58756.0,0.06740918]
[1723723200568,0.170194,58753.0,58752.0,0.05052396]
[1723723200860,0.170212,58747.0,58746.0,0.05052396]
[1723723201051,0.170214,58746.0,58745.0,0.413609]
[1723723201247,0.170214,58746.0,58745.0,0.46413296]
[1723723201560,0.05094265,58749.0,58745.0,0.37902396]
[1723723201752,0.06788794,58753.0,58752.0,0.085099]
[1723723201947,0.06788794,58753.0,58752.0,0.616097]
[1723723202154,0.0593739,58753.0,58752.0,1.61143248]
[1723723202361,0.0593739,58753.0,58752.0,1.71663248]
[1723723202556,0.085093,58756.0,58755.0,0.170186]
[1723723202759,0.0603739,58757.0,58756.0,0.255279]
[1723723203056,0.0603739,58757.0,58756.0,1.54511448]
[1723723203262,0.0593739,58757.0,58756.0,1.69511448]
[1723723203762,0.00025521,58758.0,58757.0,0.085091]
[1723723203958,0.00025521,58758.0,58757.0,0.445891]
[1723723204155,0.00025521,58758.0,58757.0,0.44551516]
[1723723204356,0.00025521,58758.0,58757.0,1.35607516]
[1723723205755,0.00025521,58758.0,58757.0,1.65057516]
[1723723206062,0.00025521,58758.0,58757.0,1.79757516]
[1723723206355,0.08485993,58762.0,58757.0,1.94581983]
[1723723206563,0.08485993,58762.0,58760.0,0.3608]
[1723723206753,0.08485993,58762.0,58761.0,0.45314441]
[1723723206950,0.08485993,58762.0,58761.0,4.73370441]
[1723723207149,0.08485993,58762.0,58761.0,5.13370441]
[1723723207364,0.08485993,58762.0,58761.0,5.27370441]
[1723723207564,0.08485993,58762.0,58761.0,5.27368962]
[1723723207857,0.08585993,58762.0,58761.0,5.27368962]
[1723723208069,0.00025521,58767.0,58761.0,5.35109734]
[1723723208254,0.00025521,58767.0,58766.0,0.3608]
[1723723208454,0.00025521,58767.0,58766.0,0.44550037]
[1723723208756,0.3608,58782.0,58766.0,1.61820219]
[1723723208958,0.3608,58782.0,58774.0,0.3608]
[1723723209266,0.08485993,58783.0,58775.0,0.08470037]
[1723723209461,0.08485993,58783.0,58776.0,0.08470037]
[1723723209662,0.08485993,58783.0,58780.0,0.3608]
[1723723209866,0.08485993,58783.0,58781.0,0.08468681]
[1723723210049,0.08485993,58783.0,58782.0,0.08468681]
[1723723210659,0.09285993,58783.0,58782.0,0.08468681]
[1723723211059,0.09285993,58783.0,58780.0,0.3608]
[1723723211260,0.09285993,58783.0,58782.0,0.001]
[1723723211261,0.10685993,58783.0,58782.0,0.001]
[1723723211462,0.10685993,58783.0,58782.0,0.08568049]
[1723723212266,0.10685993,58783.0,58782.0,0.38018049]
[1723723212868,0.00088,58802.0,58783.0,0.51036]
[1723723213062,0.08476049,58805.0,58788.0,0.6553]
[1723723213363,0.3608,58808.0,58799.0,0.05040307]
[1723723213582,0.3608,58801.0,58793.0,0.05040307]
[1723723213862,0.1099,58800.0,58795.0,0.05040307]
[1723723214275,0.1086,58799.0,58795.0,0.05040307]
[1723723214460,0.3608,58796.0,58792.0,0.05040307]
[1723723214661,0.3608,58796.0,58788.0,0.42900409]
[1723723214662,0.3608,58796.0,58791.0,0.00025521]
[1723723215368,0.3608,58796.0,58795.0,0.001]
[1723723215568,0.87104,58796.0,58795.0,0.001]
[1723723215962,0.87104,58796.0,58795.0,0.002]
[1723723216761,0.87704,58796.0,58795.0,0.002]
[1723723217072,0.87804,58796.0,58795.0,0.001]
[1723723217263,1.27804,58796.0,58795.0,0.001]
[1723723217459,1.39704,58796.0,58795.0,0.001]
[1723723217665,1.39804,58796.0,58795.0,0.002]
[1723723217970,1.39804,58796.0,58791.0,0.00025521]
[1723723218174,0.80478,58795.0,58791.0,0.00025521]
[1723723218360,0.99478,58795.0,58791.0,0.00025521]
[1723723218565,0.51028,58794.0,58791.0,0.00025521]
[1723723218765,0.56028,58794.0,58791.0,0.00025521]
[1723723219075,0.51028,58793.0,58791.0,0.00025521]
[1723723219269,0.56028,58793.0,58791.0,0.00125521]
[1723723219468,0.61328,58792.0,58791.0,0.00125521]
[1723723219671,0.66328,58792.0,58791.0,0.00125521]
[1723723219870,1.06328,58792.0,58791.0,0.00125521]
[1723723220072,1.06328,58792.0,58791.0,0.00225521]
[1723723220678,0.103,58792.0,58791.0,0.00225521]
[1723723222370,0.103,58792.0,58791.0,0.00125521]
[1723723222568,0.116,58792.0,58791.0,0.00225521]
[1723723223375,0.103,58792.0,58791.0,0.00125521]
[1723723223577,0.116,58792.0,58791.0,0.00225521]
[1723723223774,0.186,58792.0,58791.0,0.00225521]
[1723723224375,0.69628,58792.0,58791.0,0.00225521]
[1723723225471,0.013,58792.0,58791.0,0.00225521]
[1723723227374,0.013,58792.0,58791.0,0.05257668]
[1723723227566,0.013,58792.0,58791.0,0.00225521]
[1723723227771,0.013,58792.0,58791.0,0.08692277]
[1723723227970,0.013,58792.0,58791.0,0.15412686]
[1723723228269,0.013,58792.0,58791.0,0.15399346]
[1723723228471,0.013,58792.0,58791.0,0.08692277]
[1723723229582,0.013,58792.0,58791.0,0.0961249]
[1723723230082,0.011,58792.0,58791.0,0.0961249]
[1723723230468,0.011,58792.0,58791.0,1.0064049]
[1723723231284,0.011,58792.0,58791.0,1.3465729]
[1723723232278,0.011,58792.0,58791.0,0.9465729]
[1723723235182,0.011,58792.0,58791.0,0.86190534]
[1723723236081,0.266123,58792.0,58791.0,0.00225521]
[1723723236285,0.266123,58792.0,58791.0,0.05264487]
[1723723236483,0.266123,58792.0,58791.0,0.00225521]
[1723723236682,0.266123,58792.0,58791.0,0.05264487]
[1723723237070,0.266123,58792.0,58791.0,0.00225521]
[1723723237988,0.266123,58792.0,58791.0,0.08729721]
[1723723239089,0.266123,58792.0,58791.0,0.00225521]
[1723723239487,0.181082,58792.0,58791.0,0.08729721]
[1723723239791,0.011,58792.0,58791.0,0.25738121]
[1723723240586,0.096041,58792.0,58791.0,0.17233921]
[1723723241586,0.011,58792.0,58791.0,0.17233921]
[1723723242084,0.011,58792.0,58791.0,0.46309769]
[1723723242391,0.011,58792.0,58791.0,0.2940499]
[1723723243487,0.096041,58792.0,58791.0,0.29311353]
[1723723243692,0.181082,58792.0,58791.0,0.29311353]
[1723723243885,0.266123,58792.0,58791.0,0.00225521]
[1723723244088,0.276123,58792.0,58791.0,0.00225521]
[1723723244592,0.276123,58792.0,58791.0,0.05273787]
[1723723245586,0.276123,58792.0,58791.0,0.00225521]
[1723723245989,0.276123,58792.0,58791.0,0.05274508]
[1723723248293,0.191082,58792.0,58791.0,0.05274508]
[1723723248491,0.512282,58792.0,58791.0,0.00225521]
[1723723248692,0.011,58792.0,58791.0,0.05274508]
[1723723248897,0.011,58792.0,58791.0,0.00225521]
[1723723249096,0.011,58792.0,58791.0,0.06955346]
[1723723249687,0.011,58792.0,58791.0,0.15459546]
[1723723250201,0.011,58792.0,58791.0,0.17233921]
[1723723250491,0.011,58792.0,58791.0,1.40233551]
[1723723250697,0.011,58792.0,58791.0,1.76313551]
[1723723250895,0.011,58792.0,58791.0,1.88419799]
[1723723251086,0.011,58792.0,58791.0,1.88476135]
[1723723251284,0.011,58792.0,58791.0,1.88476028]
[1723723251693,0.011,58792.0,58791.0,1.8847601]
[1723723252693,0.011,58792.0,58791.0,1.9698021]
[1723723254099,0.011,58792.0,58791.0,0.9095221]
[1723723254394,0.011,58792.0,58791.0,0.78789095]
[1723723254700,0.011,58792.0,58791.0,0.78789384]
[1723723256292,0.011,58792.0,58791.0,0.87202604]
[1723723256497,0.011,58792.0,58791.0,0.9935423]
[1723723256807,0.011,58792.0,58791.0,0.87202604]
[1723723258199,0.011,58792.0,58791.0,0.99357579]
[1723723258408,0.011,58792.0,58791.0,0.87202604]
[1723723258694,0.011,58792.0,58791.0,0.78789384]
[1723723258901,0.011,58792.0,58791.0,0.90938845]
[1723723260595,0.011,58792.0,58791.0,0.78700468]
[1723723260902,0.096041,58792.0,58791.0,0.61780984]
[1723723261104,0.096041,58792.0,58791.0,0.53313921]
[1723723261298,0.096041,58792.0,58791.0,0.78700636]
[1723723261299,0.011,58792.0,58791.0,0.78700636]
[1723723261500,0.011,58792.0,58791.0,0.82442856]
[1723723261709,0.011,58792.0,58791.0,0.73975625]
[1723723261891,0.011,58792.0,58791.0,0.82442302]
[1723723262203,0.011,58792.0,58791.0,0.73938102]
[1723723262393,0.011,58792.0,58791.0,0.82353951]
[1723723262591,0.011,58792.0,58791.0,0.82442302]
[1723723263499,0.011,58792.0,58791.0,0.73938102]
[1723723263691,0.011,58792.0,58791.0,0.70284798]
[1723723263892,0.011,58792.0,58791.0,0.82429827]
[1723723264696,0.011,58792.0,58791.0,0.82429902]
[1723723265404,0.011,58792.0,58791.0,1.49457902]
[1723723267203,0.011,58792.0,58791.0,1.49441819]
[1723723267504,0.17031021,58803.0,58802.0,0.085026]
[1723723267702,0.17031021,58803.0,58802.0,0.15232486]
[1723723268203,0.00025521,58803.0,58802.0,0.170052]
[1723723268403,0.08528021,58803.0,58802.0,0.170052]
[1723723268590,0.17030521,58803.0,58802.0,0.16968622]
[1723723268796,0.08728021,58803.0,58802.0,0.23832617]
[1723723269100,0.08728021,58803.0,58802.0,0.17068426]
[1723723269405,0.09928021,58803.0,58802.0,0.25671082]
[1723723269596,0.09928021,58803.0,58802.0,0.17168482]
[1723723269997,0.09928021,58803.0,58802.0,0.18098687]
[1723723270507,0.18430521,58803.0,58802.0,0.18098687]
[1723723270695,0.18430521,58803.0,58802.0,0.09632805]
[1723723270894,0.18430521,58803.0,58802.0,0.18098684]
[1723723271600,0.18430521,58803.0,58802.0,0.24821491]
[1723723271909,0.09928021,58803.0,58802.0,0.09632805]
[1723723272107,0.09928021,58803.0,58802.0,0.18098735]
[1723723273603,0.09928021,58803.0,58802.0,0.26601335]
[1723723273802,0.09928021,58803.0,58802.0,0.18098735]
[1723723274003,0.18430521,58803.0,58802.0,0.18098735]
[1723723274203,0.09928021,58803.0,58802.0,0.18098735]
[1723723274904,0.09928021,58803.0,58802.0,0.26601335]
[1723723275202,0.09928021,58803.0,58802.0,0.18098735]
[1723723275605,0.63013021,58803.0,58802.0,0.08665897]
[1723723275906,0.66013021,58803.0,58802.0,0.08665897]
[1723723276509,1.65535521,58803.0,58802.0,0.13708248]
[1723723276709,1.65535521,58803.0,58799.0,0.05042798]
[1723723276710,1.38316983,58803.0,58799.0,0.05042798]
[1723723277004,1.38316983,58803.0,58794.0,0.06722519]
[1723723277005,0.255111,58795.0,58794.0,0.05042798]
[1723723277198,0.085038,58794.0,58793.0,0.05042798]
[1723723277401,0.538314,58794.0,58793.0,0.05042798]
[1723723277707,0.538314,58794.0,58791.0,0.00025521]
[1723723277708,0.255117,58793.0,58792.0,0.05042798]
[1723723277905,0.315117,58793.0,58792.0,0.05042798]
[1723723279006,0.255123,58792.0,58791.0,0.05068319]
[1723723279206,0.295123,58792.0,58791.0,0.05068319]
[1723723279409,0.295123,58792.0,58791.0,0.00025521]
[1723723279608,0.380164,58792.0,58791.0,0.00025521]
[1723723280202,1.290444,58792.0,58791.0,0.00125521]
[1723723280402,0.08505,58786.0,58784.0,0.05044645]
[1723723280612,0.530902,58785.0,58784.0,0.05044645]
[1723723280916,0.17011,58782.0,58781.0,0.05044645]
[1723723281102,0.08506,58779.0,58778.0,0.06722519]
[1723723281300,0.08506,58779.0,58777.0,0.085062]
[1723723281606,0.085061,58778.0,58777.0,0.15226934]
[1723723281906,0.170122,58778.0,58777.0,0.06720734]
[1723723282613,0.170122,58778.0,58777.0,0.002]
[1723723283116,0.170122,58778.0,58777.0,0.087063]
[1723723283308,0.170122,58778.0,58777.0,0.091063]
[1723723283899,0.170122,58778.0,58777.0,0.006]
[1723723284105,0.255183,58778.0,58777.0,0.006]
[1723723284915,0.170122,58778.0,58777.0,0.006]
[1723723285618,0.200122,58778.0,58777.0,0.006]
[1723723285911,0.285183,58778.0,58777.0,0.006]
[1723723287511,0.285183,58778.0,58777.0,0.05630595]
[1723723288712,0.200122,58778.0,58777.0,0.14136895]
[1723723289217,0.085061,58778.0,58777.0,0.091063]
[1723723289410,0.085061,58778.0,58777.0,0.14137364]
[1723723290222,0.170122,58778.0,58777.0,0.14137364]
[1723723291422,0.170122,58778.0,58777.0,0.091063]
[1723723291613,0.200122,58778.0,58777.0,0.091063]
[1723723293604,0.200122,58778.0,58777.0,0.14137364]
[1723723293812,0.170122,58778.0,58777.0,0.14137364]
[1723723295020,0.170122,58778.0,58777.0,0.091063]
[1723723295222,0.170122,58778.0,58777.0,0.006]
[1723723295715,0.180122,58778.0,58777.0,0.006]
[1723723296307,0.180122,58778.0,58777.0,0.091063]
[1723723296515,0.265183,58778.0,58777.0,0.006]
[1723723297614,0.690522,58778.0,58777.0,0.006]
[1723723297812,0.775583,58778.0,58777.0,0.006]
[1723723299506,0.265183,58778.0,58777.0,0.006]
[1723723300420,0.625983,58778.0,58777.0,0.006]
[1723723300823,0.711044,58778.0,58777.0,0.006]
[1723723301022,0.625983,58778.0,58777.0,0.006]
[1723723301324,0.711044,58778.0,58777.0,0.006]
[1723723301520,0.625983,58778.0,58777.0,0.006]
[1723723302509,0.625983,58778.0,58777.0,0.05631064]
[1723723303631,0.625983,58778.0,58777.0,0.006]
[1723723305527,0.530922,58778.0,58777.0,0.006]
[1723723305729,0.530922,58778.0,58777.0,0.196963]
[1723723306837,0.445861,58778.0,58777.0,0.282026]
[1723723309218,0.085061,58778.0,58777.0,0.36614958]
[1723723309532,0.085061,58778.0,58777.0,0.4872492]
[1723723310221,0.085061,58778.0,58777.0,0.40312562]
[1723723310531,0.170122,58778.0,58777.0,0.40312562]
[1723723311033,0.085061,58778.0,58777.0,0.40312562]
[1723723311235,0.255183,58778.0,58777.0,0.09025341]
[1723723311423,0.255183,58778.0,58777.0,0.006]
[1723723311727,0.655183,58778.0,58777.0,0.006]
[1723723311927,1.398883,58778.0,58777.0,0.006]
[1723723312724,1.483944,58778.0,58777.0,0.006]
[1723723313131,1.398883,58778.0,58777.0,0.006]
[1723723313730,1.483944,58778.0,58777.0,0.006]
[1723723314030,1.398883,58778.0,58777.0,0.006]
[1723723314224,1.483944,58778.0,58777.0,0.006]
[1723723314423,1.398883,58778.0,58777.0,0.006]
[1723723314630,1.483944,58778.0,58777.0,0.006]
[1723723315434,1.759683,58778.0,58777.0,0.006]
[1723723315729,1.844744,58778.0,58777.0,0.006]
[1723723316829,1.444744,58778.0,58777.0,0.006]
[1723723317142,1.844744,58778.0,58777.0,0.006]
[1723723317430,1.444744,58778.0,58777.0,0.006]
[1723723318037,1.844744,58778.0,58777.0,0.006]
[1723723318234,1.444744,58778.0,58777.0,0.006]
[1723723318436,0.849283,58778.0,58777.0,0.006]
[1723723319120,0.934344,58778.0,58777.0,0.006]
[1723723320324,0.934344,58778.0,58777.0,0.07338018]
[1723723320935,0.849283,58778.0,58777.0,0.07338018]
[1723723321538,0.934344,58778.0,58777.0,0.07338018]
[1723723321737,0.98535806,58778.0,58777.0,0.006]
[1723723322635,0.67699706,58778.0,58777.0,0.006]
[1723723323433,0.67699706,58778.0,58777.0,0.091063]
[1723723323632,0.06802318,58781.0,58779.0,0.08506]
[1723723323827,0.170116,58781.0,58780.0,0.116]
[1723723324030,0.170116,58781.0,58777.0,0.006]
[1723723324031,0.170122,58778.0,58777.0,0.006]
[1723723324356,0.540922,58778.0,58777.0,0.006]
[1723723324748,0.445861,58778.0,58777.0,0.091063]
[1723723325035,0.13608085,58778.0,58777.0,0.085063]
[1723723325241,0.05101985,58778.0,58777.0,0.255189]
[1723723325439,0.086057,58781.0,58777.0,0.085063]
[1723723325744,0.085057,58781.0,58777.0,0.002]
[1723723325940,0.05101601,58778.0,58777.0,0.176126]
[1723723326441,0.085057,58781.0,58780.0,0.085058]
[1723723326941,0.085057,58781.0,58780.0,0.170116]
[1723723327138,0.06802318,58783.0,58782.0,0.255165]
[1723723327330,0.36105521,58784.0,58783.0,0.255162]
[1723723327527,0.00025521,58784.0,58783.0,0.37706959]
[1723723327833,0.00025521,58784.0,58783.0,0.52526641]
[1723723328033,0.00025521,58784.0,58783.0,0.62621471]
[1723723328332,0.00025521,58784.0,58783.0,0.37706959]
[1723723328531,0.00325521,58784.0,58783.0,0.37706959]
[1723723328934,0.00625521,58784.0,58783.0,0.38651847]
[1723723329241,0.00625521,58784.0,58783.0,0.30146447]
[1723723329444,0.09130721,58784.0,58783.0,0.30053323]
[1723723329630,0.09130721,58784.0,58783.0,0.09450288]
[1723723331852,0.08830721,58784.0,58783.0,0.09550288]
[1723723333241,0.17335921,58784.0,58783.0,0.09550288]
[1723723334146,0.25641121,58784.0,58783.0,0.01044888]
[1723723334551,0.25841121,58784.0,58783.0,0.01044888]
[1723723334937,0.25941121,58784.0,58783.0,0.00944888]
[1723723335137,0.170108,58783.0,58782.0,0.445854]
[1723723335640,0.170108,58783.0,58782.0,0.085054]
[1723723335841,0.170108,58783.0,58782.0,0.09428102]
[1723723336347,0.085054,58783.0,58782.0,0.09428102]
[1723723336540,0.170108,58783.0,58782.0,0.00922702]
[1723723336849,0.170108,58783.0,58781.0,0.085056]
[1723723336850,0.17011,58782.0,58781.0,0.085056]
[1723723337445,0.085058,58780.0,58779.0,0.190559]
[1723723338048,0.085058,58780.0,58779.0,0.20008072]
[1723723339451,0.085058,58780.0,58779.0,0.20108072]
[1723723339937,0.170116,58780.0,58779.0,0.21318072]
[1723723340139,0.085058,58780.0,58779.0,0.21318072]
[1723723340336,0.255174,58780.0,58779.0,0.01052172]
[1723723340638,0.265174,58780.0,58779.0,0.07778886]
[1723723340839,0.265174,58780.0,58779.0,0.001]
[1723723341044,1.005458,58780.0,58776.0,0.06726714]
[1723723341238,0.255201,58774.0,58773.0,0.00025521]
[1723723341437,0.462801,58774.0,58773.0,0.00950408]
[1723723341836,0.345201,58774.0,58773.0,0.00950408]
[1723723342351,0.255201,58774.0,58773.0,0.00950408]
[1723723343248,0.170134,58774.0,58773.0,0.01750408]
[1723723343448,0.085067,58774.0,58773.0,0.10257208]
[1723723343840,0.085067,58774.0,58773.0,0.10957208]
[1723723347947,0.170128,58776.0,58775.0,0.085064]
[1723723348253,0.170128,58776.0,58775.0,0.13550268]
[1723723348551,0.200128,58776.0,58775.0,0.13550268]
[1723723349448,0.200128,58776.0,58775.0,0.05043868]
[1723723349654,0.285192,58776.0,58775.0,0.05043868]
[1723723349851,0.285192,58776.0,58775.0,0.05643868]
[1723723350047,0.285192,58776.0,58775.0,0.06043868]
[1723723351050,0.285192,58776.0,58775.0,0.01]
[1723723351555,0.42118066,58776.0,58775.0,0.01]
[1723723351759,0.370256,58776.0,58775.0,0.01]
[1723723352160,0.42115948,58776.0,58775.0,0.01]
[1723723352949,0.42115948,58776.0,58766.0,0.06728589]
[1723723352950,0.085067,58774.0,58768.0,0.05043868]
[1723723353259,0.085067,58774.0,58761.0,0.1117]
[1723723353260,0.255228,58768.0,58767.0,0.05043868]
[1723723353459,0.085077,58767.0,58763.0,0.15236889]
[1723723353650,0.275077,58767.0,58763.0,0.15236889]
[1723723353972,0.170162,58764.0,58763.0,0.15236889]
[1723723354255,0.170162,58764.0,58763.0,0.085083]
[1723723354751,0.170162,58764.0,58763.0,0.099083]
[1723723355152,0.170162,58764.0,58763.0,0.014]
[1723723355762,0.275243,58764.0,58763.0,0.06439251]
[1723723356149,0.275243,58764.0,58763.0,0.028]
[1723723356150,0.276243,58764.0,58763.0,0.028]
[1723723356546,0.276243,58764.0,58763.0,0.014]
[1723723356854,0.277243,58764.0,58763.0,0.028]
[1723723357457,0.277243,58764.0,58763.0,0.07839251]
[1723723357659,0.362324,58764.0,58760.0,0.05039251]
[1723723357866,0.3608,58762.0,58752.0,0.05039155]
[1723723358047,0.3608,58762.0,58750.0,0.05039155]
[1723723358048,0.445897,58753.0,58750.0,0.05039155]
[1723723358251,0.445897,58753.0,58749.0,0.085103]
[1723723358252,0.170204,58750.0,58749.0,0.085103]
[1723723358555,0.085102,58750.0,58749.0,0.085103]
[1723723358962,0.170204,58750.0,58749.0,0.085103]
[1723723359157,0.085102,58750.0,58749.0,0.085103]
[1723723359462,0.170214,58748.0,58747.0,0.085105]
[1723723359955,0.170214,58746.0,58745.0,0.1450738]
[1723723360160,0.170214,58746.0,58745.0,0.09468225]
[1723723360360,0.170214,58746.0,58742.0,0.00012933]
[1723723360361,0.085112,58743.0,58742.0,0.05052088]
[1723723360551,0.085112,58743.0,58742.0,0.00012933]
[1723723360748,0.255336,58743.0,58742.0,0.00012933]
[1723723361962,0.256336,58743.0,58742.0,0.00012933]
[1723723362360,0.287336,58743.0,58742.0,0.00012933]
[1723723363057,0.41099141,58743.0,58742.0,0.00012933]
[1723723363561,0.41099141,58743.0,58732.0,0.16519155]
[1723723363562,0.085126,58733.0,58732.0,0.199927]
[1723723363748,0.445926,58733.0,58732.0,0.085127]
[1723723364359,0.44605533,58733.0,58732.0,0.085127]
[1723723364860,0.44705533,58733.0,58732.0,0.09627971]
[1723723365163,0.44705533,58733.0,58732.0,0.10227971]
[1723723365164,0.44805533,58733.0,58732.0,0.10227971]
[1723723367161,0.53318133,58733.0,58732.0,0.10227971]
[1723723367660,0.53318133,58733.0,58732.0,0.01715271]
[1723723368465,0.53318133,58733.0,58732.0,0.008]
[1723723368967,0.61830733,58733.0,58732.0,0.008]
[1723723369864,0.62765459,58733.0,58732.0,0.008]
[1723723370667,0.64765459,58733.0,58732.0,0.008]
[1723723371450,0.62765459,58733.0,58732.0,0.008]
[1723723371655,0.61830733,58733.0,58732.0,0.008]
[1723723371858,0.64830733,58733.0,58732.0,0.008]
[1723723372362,0.61830733,58733.0,58732.0,0.008]
[1723723373458,0.66830733,58733.0,58732.0,0.008]
[1723723375468,0.96240733,58733.0,58732.0,0.008]
[1723723380356,1.21782933,58733.0,58718.0,0.050263]
[1723723380667,1.21782933,58733.0,58716.0,0.3608]
[1723723380668,0.17029,58720.0,58719.0,0.300545]
[1723723380860,0.085145,58720.0,58719.0,0.300545]
[1723723381067,0.085145,58720.0,58719.0,0.31019152]
[1723723381469,0.53121933,58720.0,58719.0,0.31619152]
[1723723381667,0.44607433,58720.0,58719.0,0.31619152]
[1723723381857,0.64901933,58720.0,58719.0,0.10079152]
[1723723382177,0.65101933,58720.0,58719.0,0.01764652]
[1723723382867,0.56587433,58720.0,58719.0,0.10279352]
[1723723383169,0.36292933,58720.0,58719.0,0.98695452]
[1723723383355,0.00212933,58720.0,58719.0,1.43721752]
[1723723383563,0.00212933,58720.0,58719.0,1.38695452]
[1723723383868,0.00212933,58720.0,58719.0,1.26915452]
[1723723384073,0.00025545,58725.0,58724.0,0.340556]
[1723723384462,0.00025545,58725.0,58724.0,0.51201995]
[1723723384972,0.00025545,58725.0,58724.0,0.51202003]
[1723723385170,0.00025545,58725.0,58724.0,0.359717]
[1723723385371,0.00025545,58725.0,58724.0,0.34178909]
[1723723385372,0.08539345,58725.0,58724.0,0.34178909]
[1723723385677,0.08539345,58725.0,58724.0,0.32499431]
[1723723385870,0.08539345,58725.0,58724.0,0.274578]
[1723723386069,0.00025545,58725.0,58724.0,0.274578]
[1723723386268,0.00025545,58725.0,58724.0,0.42692809]
[1723723386471,0.08513,58731.0,58724.0,0.42692809]
[1723723386472,0.085132,58729.0,58728.0,0.170263]
[1723723388680,0.085132,58729.0,58728.0,0.172263]
[1723723389179,0.085132,58729.0,58728.0,0.54254457]
[1723723389373,0.085132,58729.0,58728.0,0.67224162]
[1723723389980,0.170264,58729.0,58728.0,0.58710962]
[1723723390191,0.170264,58729.0,58728.0,0.18084476]
[1723723390363,0.616196,58729.0,58728.0,0.09661257]
[1723723390769,0.616196,58729.0,58728.0,0.01148157]
[1723723391268,0.821328,58729.0,58728.0,0.002]
[1723723391475,0.340552,58725.0,58723.0,0.00025545]
[1723723391779,0.910517,58724.0,58723.0,0.06773771]
[1723723391984,1.130517,58724.0,58723.0,0.00025545]
[1723723392169,1.130517,58724.0,58723.0,0.06773771]
[1723723392368,1.130517,58724.0,58723.0,0.00025545]
[1723723392571,1.130517,58724.0,58723.0,0.00225545]
[1723723393181,1.130517,58724.0,58723.0,0.06974832]
[1723723393378,1.130517,58724.0,58723.0,0.00225545]
[1723723393584,1.18116723,58724.0,58723.0,0.00225545]
[1723723394083,1.130517,58724.0,58723.0,0.00225545]
[1723723394586,1.130517,58724.0,58723.0,0.00025545]
[1723723394775,1.132517,58724.0,58723.0,0.00425545]
[1723723395573,0.912517,58724.0,58723.0,0.00425545]
[1723723396277,0.912517,58724.0,58723.0,0.05483771]
[1723723397081,0.912517,58724.0,58723.0,0.00425545]
[1723723397685,0.533078,58724.0,58723.0,0.08939645]
[1723723398574,0.533078,58724.0,58723.0,0.13997624]
[1723723398776,0.533078,58724.0,58723.0,0.0548357]
[1723723398976,0.533078,58724.0,58723.0,0.0548369]
[1723723399181,0.618217,58724.0,58723.0,0.00425545]
[1723723400587,0.921235,58724.0,58723.0,0.00425545]
[1723723400783,0.920235,58724.0,58723.0,0.00025545]
[1723723401088,1.062235,58724.0,58723.0,0.05085277]
[1723723401792,1.065235,58724.0,58723.0,0.05085277]
[1723723401977,1.430035,58724.0,58723.0,0.05085277]
[1723723403288,1.430035,58724.0,58723.0,0.00025545]
[1723723403786,1.515174,58724.0,58723.0,0.00025545]
[1723723406979,1.56612559,58724.0,58723.0,0.00025545]
[1723723408493,0.340576,58721.0,58720.0,0.05059732]
[1723723408691,0.17029,58720.0,58718.0,0.05059732]
[1723723408889,0.616241,58719.0,58718.0,0.05059732]
[1723723409282,0.626241,58719.0,58718.0,0.05059732]
[1723723409481,0.616241,58719.0,58718.0,0.05059732]
[1723723410199,0.616241,58719.0,58718.0,0.13574532]
[1723723410379,0.531094,58719.0,58718.0,0.085148]
[1723723410979,0.085151,58717.0,58716.0,0.08515]
[1723723411184,0.085154,58714.0,58713.0,0.09474522]
[1723723411681,0.170308,58714.0,58713.0,0.09474522]
[1723723412580,0.171308,58714.0,58713.0,0.09474522]
[1723723413091,0.001,58714.0,58713.0,0.26505522]
[1723723413298,0.00025545,58719.0,58718.0,0.255444]
[1723723414108,0.00025545,58719.0,58718.0,0.4539086]
[1723723414406,0.00025545,58719.0,58718.0,0.58362861]
[1723723414596,0.085138,58725.0,58724.0,0.170278]
[1723723414786,0.170277,58725.0,58724.0,0.15254674]
[1723723415590,0.170277,58725.0,58724.0,0.085139]
[1723723415989,0.170277,58725.0,58724.0,0.15255949]
[1723723416299,0.531077,58725.0,58724.0,0.15255949]
[1723723416600,0.533077,58725.0,58724.0,0.15255949]
[1723723417098,0.540077,58725.0,58724.0,0.15255949]
[1723723417699,0.537077,58725.0,58724.0,0.15255949]
[1723723418395,0.536077,58725.0,58724.0,0.085139]
[1723723418596,0.538077,58725.0,58724.0,0.085139]
[1723723418793,0.538077,58725.0,58724.0,0.15258796]
[1723723418989,0.452938,58725.0,58724.0,0.23772696]
[1723723419190,0.452938,58725.0,58724.0,0.386278]